fUSD/lending_fUSD_20251112
["ID","MTS","AMOUNT","RATE_DAILY","PERIOD"]
[393789615,1762990121805,-969.3550117,0.00015,3]
[393789617,1762990121828,-8061.2999766,0.00015,3]
[393789618,1762990121921,-3274.641581,0.00016915,2]
[393789619,1762990121947,-3450.726838,0.00016915,2]
[393789620,1762990122022,-10000.01,0.00017,2]
[393789622,1762990122127,-10000.01,0.00017,2]
[393789623,1762990122335,-10000.01,0.00017,2]
[393789624,1762990122968,-166.66,0.00017,2]
[393789625,1762990124670,-157.27830987,0.00017,2]
[393789626,1762990124706,-10000.01,0.00017,2]
[393789627,1762990124808,-10000.01,0.00017,2]
[393789628,1762990125066,-10000.01,0.00017,2]
[393789629,1762990126886,-165.24778131,0.00017,2]
[393789630,1762990129056,-245.32,0.00017,2]
[393789631,1762990131246,-195.0,0.00017,2]
[393789632,1762990134164,-10000.01,0.00017,2]
[393789633,1762990134351,-10000.01,0.00017,2]
[393789634,1762990134383,-264.29827129,0.00017,2]
[393789635,1762990134461,-10000.01,0.00017,2]
[393789636,1762990134587,-10000.01,0.00017,2]
[393789637,1762990134715,-10000.01,0.00017,2]
[393789638,1762990134795,-10000.01,0.00017,2]
[393789639,1762990134902,-10000.01,0.00017,2]
[393789640,1762990136948,-10000.01,0.00017,2]
[393789641,1762990137267,-10000.01,0.00017,2]
[393789642,1762990137353,-179.03468423,0.00017,2]
[393789643,1762990137379,-10000.01,0.00017,2]
[393789644,1762990140281,-10000.01,0.00017,2]
[393789645,1762990140466,-10000.01,0.00017,2]
[393789646,1762990140605,-10000.01,0.00017,2]
[393789647,1762990140719,-10000.01,0.00017,2]
[393789648,1762990140749,-300.0,0.00017,2]
[393789649,1762990140839,-10000.01,0.00017,2]
[393789650,1762990140945,-10000.01,0.00017,2]
[393789651,1762990142358,-152.87,0.00017,2]
[393789652,1762990143399,-10000.01,0.00017,2]
[393789653,1762990143514,-10000.01,0.00017,2]
[393789654,1762990143614,-10000.01,0.00017,2]
[393789655,1762990144058,-300.0,0.00017,2]
[393789656,1762990145927,-305.15546868,0.00017,2]
[393789657,1762990146586,-10000.01,0.00017,2]
[393789658,1762990146691,-10000.01,0.00017,2]
[393789659,1762990146798,-10000.01,0.00017,2]
[393789660,1762990146921,-10000.01,0.00017,2]
[393789661,1762990147050,-10000.01,0.00017,2]
[393789662,1762990147230,-10000.01,0.00017,2]
[393789663,1762990147335,-10000.01,0.00017,2]
[393789664,1762990148138,8518.685205,7.945e-05,2]
[393789665,1762990148312,-200.57763593,0.00017,2]
[393789666,1762990151907,-217.72040068,0.00017,2]
[393789667,1762990153532,-936.64613063,0.00017,2]
[393789668,1762990153562,-8126.71773874,0.00017,2]
[393789669,1762990154566,-193.0,0.00017425,2]
[393789670,1762990154588,-172.67096414,0.0001785,2]
[393789671,1762990157125,-1.81678117,0.0001785,2]
[393789672,1762990157147,-250.0,0.0001785,2]
[393789673,1762990157169,-195.0,0.0001785,2]
[393789674,1762990157190,-195.0,0.000187,2]
[393789675,1762990157210,-300.0,0.000187,2]
[393789676,1762990157230,-250.0,0.000187,2]
[393789677,1762990157252,-195.0,0.000187,2]
[393789678,1762990157272,-340.90982863,0.000187,2]
[393789679,1762990157294,-193.0,0.000187,2]
[393789680,1762990157314,-501.16873545,0.000188,2]
[393789681,1762990157334,-506.58967554,0.000188,2]
[393789682,1762990157355,-500.0,0.000188,2]
[393789683,1762990157376,-275.86139825,0.00018962,2]
[393789684,1762990157397,-195.0,0.00018962,2]
[393789685,1762990157417,-742.90466296,0.00019,2]
[393789698,1762990232382,-178.47056931,0.00019,2]
[393789699,1762990232393,-195.0,0.00019174,2]
[393789700,1762990232402,-65.95349926,0.00019348,2]
[393789701,1762990232461,-434.04650074,0.00019348,2]
[393789702,1762990232471,-492.65336017,0.0002,10]
[393789703,1762990232481,-195.0,0.00020111,2]
[393789704,1762990232491,-195.0,0.00020336,2]
[393789705,1762990232500,-250.0,0.000209,2]
[393789706,1762990232510,-195.0,0.000209,2]
[393789707,1762990232519,-826.94,0.00023222,2]
[393789708,1762990232529,-826.94,0.00024198,2]
[393789717,1762990232761,-300.0,0.00024799,2]
[393789718,1762990232779,-1200.0,0.00024799,2]
[393789719,1762990232789,-300.0,0.00024799,2]
[393789720,1762990232798,-38.4486582,0.00024799,2]
[393789721,1762990232810,-418.5513418,0.00024799,2]
[393789722,1762990232819,-6600.69463902,0.000248,3]
[393789723,1762990232838,-531.67165279,0.000248,3]
[393789724,1762990232876,-1339.14935823,0.000248,3]
[393789725,1762990232887,-404.53844161,0.000248,3]
[393789726,1762990232931,-533.56929914,0.000248,3]
[393789727,1762990232946,-1326.4511873,0.000248,3]
[393789728,1762990232958,-387.98379745,0.000248,3]
[393789729,1762990232981,-271.91129923,0.000248,3]
[393789904,1762990240485,-1020.0766879,0.000248,3]
[393789905,1762990240496,-1249.79831599,0.000248,3]
[393789906,1762990240507,-3497.67687774,0.000248,3]
[393789907,1762990240519,-4564.72056112,0.000248,3]
[393789915,1762990241163,-1.7e-07,0.000248,3]
[393789916,1762990241174,-82961.28847231,0.000248,3]
[393789917,1762990241183,-7242.92043941,0.00025,10]
[393789918,1762990241193,-826.94,0.00025175,2]
[393789919,1762990241202,-826.94,0.00026152,2]
[393789920,1762990241211,-200.0,0.00026871,2]
[393789921,1762990241220,-420.0,0.00026871,2]
[393789922,1762990241230,-1680.0,0.00026993,2]
[393789923,1762990241239,-826.94,0.00027129,2]
[393789924,1762990241248,-826.94,0.00028105,2]
[393789925,1762990241257,-826.94,0.00029082,2]
[393789926,1762990241267,-587.0,0.00029116,2]
[393789927,1762990241276,-500.0,0.0002937,2]
[393789928,1762990241285,-2351.0,0.00029381,2]
[393789929,1762990241295,-826.94,0.00030059,2]
[393789930,1762990241304,-241.65,0.00030722,120]
[393789931,1762990241314,-5999.98999646,0.00030889,2]
[393789932,1762990241323,-826.94,0.00031035,2]
[393789933,1762990241333,-593.0,0.00031549,2]
[393789934,1762990241342,-500.0,0.00031918,2]
[393789935,1762990241352,-3292.0,0.00031981,3]
[393789936,1762990241362,-504.63,0.00032,2]
[393789937,1762990241371,-826.94,0.00032012,2]
[393789938,1762990241380,-178.98,0.00032333,2]
[393789939,1762990241390,-826.94,0.00032989,2]
[393789940,1762990241399,-178.98,0.00033949,2]
[393789941,1762990241408,-826.94,0.00033966,2]
[393789942,1762990241418,-8053.04081458,0.00033989,3]
[393789943,1762990241428,-1200.0,0.00033999,3]
[393789944,1762990241437,-6717.37437038,0.00034,2]
[393789945,1762990241447,-239.56592722,0.00034153,2]
[393789946,1762990241456,-241.65,0.00034562,120]
[393789947,1762990241466,-3363.0,0.0003481,3]
[393789948,1762990241475,-826.94,0.00034942,2]
[393789949,1762990241485,-239.5659272,0.00035296,2]
[393789950,1762990241494,-178.98,0.00035566,2]
[393789951,1762990241503,-20069.43514653,0.0003561,120]
[393789952,1762990241512,-8546.94832402,0.00035819,2]
[393789953,1762990241521,-826.94,0.00035919,2]
[393789954,1762990241530,-8053.04081458,0.0003599,3]
[393789955,1762990241539,-8939.41841322,0.00036,120]
[393789956,1762990241548,-12333.2612112,0.0003608,3]
[393789957,1762990241557,-834.92,0.0003608,2]
[393789958,1762990241566,-32212.1632583,0.0003609,3]
[393789959,1762990241575,-30833.1530281,0.0003609,3]
[393789960,1762990241584,-834.92,0.0003609,2]
[393789961,1762990241593,-66538.33866894,0.000361,2]
[393789962,1762990241602,-395.25909271,0.00036258,30]
[393789963,1762990241612,-8546.94832397,0.00036341,2]
[393789964,1762990241622,-239.5659272,0.00036438,2]
[393789965,1762990241632,-156.0,0.00036538,2]
[393789966,1762990241641,-300.0,0.00036724,119]
[393789967,1762990241651,-1588.66761652,0.000368,2]
[393789968,1762990241660,-8546.94832397,0.00036863,2]
[393789969,1762990241669,-826.94,0.00036896,2]
[393789970,1762990241680,-12333.2612112,0.0003698,4]
[393789971,1762990241689,-834.92,0.0003698,2]
[393789972,1762990241699,-16106.0816292,0.0003699,4]
[393789973,1762990241708,-12333.2612112,0.0003699,4]
[393789974,1762990241717,-32031.1558659,0.00037,5]
[393789975,1762990241727,-160.80284674,0.00037082,15]
[393789976,1762990241736,-178.98,0.00037183,2]
[393789977,1762990241746,-8546.94832397,0.00037385,2]
[393789978,1762990241755,-233.93239328,0.0003739,14]
[393789979,1762990241765,-160.80284671,0.00037769,15]
[393789980,1762990241775,-6166.63060561,0.00037821,4]
[393789981,1762990241784,-4834.0,0.00037831,7]
[393789982,1762990241793,-826.94,0.00037872,2]
[393789983,1762990241803,-834.92,0.00037873,2]
[393789984,1762990241813,-8053.04081458,0.00037883,4]
[393789985,1762990241823,-6166.63060561,0.00037883,4]
[393789986,1762990241833,-4834.0,0.00037893,120]
[393789987,1762990241843,-8546.94832397,0.00037907,2]
[393789988,1762990241853,-150.0,0.00037973,5]
[393789989,1762990241864,-30833.1530281,0.0003798,4]
[393789990,1762990241873,-834.92,0.0003798,2]
[393789991,1762990241883,-500.0,0.00037989,15]
[393789992,1762990241893,-490.92540579,0.00037989,15]
[393789993,1762990241902,-318.33264924,0.00037989,15]
[393789994,1762990241911,-500.0,0.00037989,7]
[393789995,1762990241923,-500.0,0.00037989,15]
[393789996,1762990241934,-344.72407311,0.00037989,7]
[393789997,1762990241943,-180.2241358,0.00037989,15]
[393789998,1762990241953,-278.19810614,0.00037989,15]
[393789999,1762990241962,-500.0,0.00037989,15]
[393790000,1762990241971,-500.0,0.00037989,15]
[393790001,1762990241981,-500.0,0.00037989,15]
[393790002,1762990241991,-500.0,0.00037989,15]
[393790003,1762990242000,-500.0,0.00037989,15]
[393790004,1762990242010,-500.0,0.00037989,15]
[393790005,1762990242019,-500.0,0.00037989,15]
[393790006,1762990242029,-500.0,0.00037989,15]
[393790007,1762990242038,-500.0,0.00037989,15]
[393790008,1762990242047,-500.0,0.00037989,15]
[393790009,1762990242056,-500.0,0.00037989,15]
[393790010,1762990242066,-500.0,0.00037989,15]
[393790011,1762990242074,-500.0,0.00037989,15]
[393790012,1762990242083,-500.0,0.00037989,15]
[393790013,1762990242092,-500.0,0.00037989,15]
[393790014,1762990242102,-500.0,0.00037989,15]
[393790015,1762990242112,-500.0,0.00037989,15]
[393790016,1762990242270,-500.0,0.00037989,15]
[393790017,1762990242280,-500.0,0.00037989,15]
[393790018,1762990242289,-500.0,0.00037989,15]
[393790019,1762990242299,-500.0,0.00037989,15]
[393790020,1762990242308,-500.0,0.00037989,15]
[393790021,1762990242317,-500.0,0.00037989,15]
[393790022,1762990242327,-500.0,0.00037989,15]
[393790023,1762990242336,-500.0,0.00037989,15]
[393790024,1762990242345,-164.07577216,0.00037989,15]
[393790025,1762990242354,-500.0,0.00037989,15]
[393790026,1762990242365,-500.0,0.00037989,15]
[393790027,1762990242374,-500.0,0.00037989,15]
[393790028,1762990242383,-64424.3265166,0.0003799,4]
[393790029,1762990242392,-117165.981507,0.0003799,4]
[393790030,1762990242401,-500.0,0.00037999,2]
[393790031,1762990242410,-157446.79114713,0.00038,2]
[393790032,1762990242419,-76497.02472379,0.00038,2]
[393790033,1762990242428,-500.0,0.00038356,30]
[393790034,1762990242437,-241.65,0.00038402,120]
[393790035,1762990242447,-8546.94832397,0.00038428,2]
[393790036,1762990242456,-160.80284671,0.00038456,15]
[393790037,1762990242465,-182.78404564,0.00038521,5]
[393790038,1762990242475,-500.0,0.0003863,30]
[393790039,1762990242483,-168.11550095,0.00038725,2]
[393790040,1762990242492,-2724.0,0.00038825,120]
[393790041,1762990242501,-2751.0,0.00038895,120]
[393790042,1762990242510,-500.0,0.00038904,30]
[393790043,1762990242519,-200.0,0.00038927,2]
[393790044,1762990242529,-169.64122107,0.00038947,14]
[393790045,1762990242538,-8546.94832397,0.0003895,2]
[393790046,1762990242547,-934.56,0.00038967,120]
[393790047,1762990242556,-6166.63060561,0.00039015,4]
[393790048,1762990242565,-10847.87,0.00039025,2]
[393790049,1762990242574,-2724.0,0.00039043,2]
[393790050,1762990242585,-160.80284671,0.00039142,15]
[393790051,1762990242594,-500.0,0.00039178,30]
[393790052,1762990242603,-250.0,0.00039224,2]
[393790053,1762990242613,-185.0,0.00039395,2]
[393790054,1762990242622,-1083.219,0.00039419,54]
[393790055,1762990242631,-6166.63060561,0.00039422,4]
[393790056,1762990242640,-2724.0,0.00039432,7]
[393790057,1762990242649,-500.0,0.00039452,30]
[393790058,1762990242658,-8546.94832397,0.00039472,2]
[393790059,1762990242667,-1000.0,0.00039527,120]
[393790060,1762990242676,-153.0,0.00039538,2]
[393790061,1762990242685,-200.0,0.00039605,2]
[393790062,1762990242694,-500.0,0.0003963,30]
[393790063,1762990242703,-1851.57282126,0.00039636,120]
[393790064,1762990242713,-451.28,0.00039654,2]
[393790065,1762990242722,-500.0,0.00039726,30]
[393790066,1762990242731,-300.0,0.00039799,97]
[393790067,1762990242740,-160.80284671,0.00039829,15]
[393790068,1762990242751,-478.56668374,0.00039983,2]
[393790069,1762990242760,-8546.94832397,0.00039994,15]
[393790070,1762990242769,-500.0,0.0004,30]
[393790071,1762990242778,-2000.0,0.0004,2]
[393790072,1762990242787,-171.0,0.0004,30]
[393790073,1762990242797,-10000.0,0.0004,2]
[393790074,1762990242806,-33295.3526,0.00040055,2]
[393790075,1762990242815,-186.0,0.00040115,7]
[393790076,1762990242825,-166.7,0.0004013,2]
[393790077,1762990242834,-500.0,0.00040274,30]
[393790078,1762990242844,-500.0,0.00040289,20]
[393790079,1762990242853,-500.0,0.00040291,20]
[393790080,1762990242863,-161.0,0.000403,2]
[393790081,1762990242872,-500.0,0.00040392,20]
[393790082,1762990242881,-500.0,0.00040392,20]
[393790083,1762990242888,-191.55081289,0.00040401,20]
[393790084,1762990242895,-280.0424,0.00040405,2]
[393790085,1762990242901,-4075.0963,0.00040405,2]
[393790086,1762990242909,-28458.4667,0.00040405,2]
[393790087,1762990242919,-200.37897285,0.00040405,12]
[393790088,1762990242932,-540.13503616,0.00040411,20]
[393790089,1762990242939,-184.17143953,0.00040413,4]
[393790090,1762990242946,-2500.0,0.00040415,2]
[393790091,1762990242953,-185.0,0.00040442,2]
[393790092,1762990242960,-150.19,0.00040471,14]
[393790093,1762990242967,-500.0,0.00040504,2]
[393790094,1762990242976,-1209.53638,0.0004051,4]
[393790095,1762990242985,-500.0,0.00040514,2]
[393790096,1762990242994,-500.0,0.00040514,7]
[393790097,1762990243005,-500.0,0.00040514,7]
[393790098,1762990243014,-199.0,0.00040514,7]
[393790099,1762990243023,-326.80210895,0.00040514,20]
[393790100,1762990243032,-527.80203841,0.00040514,20]
[393790101,1762990243041,-500.0,0.00040514,20]
[393790102,1762990243050,-500.0,0.00040514,20]
[393790103,1762990243060,-500.0,0.00040514,20]
[393790104,1762990243069,-500.0,0.00040514,20]
[393790105,1762990243078,-500.0,0.00040514,20]
[393790107,1762990243088,-500.0,0.00040514,20]
[393790109,1762990243097,-500.0,0.00040514,20]
[393790111,1762990243106,-500.0,0.00040514,2]
[393790112,1762990243116,-500.0,0.00040514,2]
[393790113,1762990243125,-420000.0,0.00040515,2]
[393790114,1762990243134,-1000.0,0.00040515,2]
[393790115,1762990243143,-336.20565602,0.00040515,14]
[393790116,1762990243152,-160.80284671,0.00040516,15]
[393790117,1762990243161,-8546.94832397,0.00040516,15]
[393790118,1762990243170,-541.2,0.0004054,30]
[393790119,1762990243179,-555.692,0.00040542,2]
[393790120,1762990243188,-1542.184,0.00040542,2]
[393790121,1762990243197,-813.0,0.00040542,2]
[393790122,1762990243206,-1274.0,0.00040542,2]
[393790123,1762990243215,-1189.0,0.00040542,2]
[393790124,1762990243223,-6666.0,0.00040542,2]
[393790125,1762990243232,-574.0,0.00040542,2]
[393790126,1762990243241,-2143.0,0.00040542,2]
[393790127,1762990243251,-500.0,0.00040548,30]
[393790128,1762990243260,-500.0,0.00040573,5]
[393790129,1762990243269,-503.16454672,0.00040595,120]
[393790130,1762990243278,-5000.0,0.000406,120]
[393790131,1762990243288,-150.0,0.000406,60]
[393790132,1762990243297,-6496.2928425,0.000406,2]
[393790133,1762990243307,-151086.5670218,0.00040612,2]
[393790134,1762990243316,-1209.53638,0.00040613,5]
[393790135,1762990243325,-500.0,0.00040613,20]
[393790136,1762990243335,-500.0,0.00040614,2]
[393790137,1762990243344,-2478.0703984,0.00040615,2]
[393790138,1762990243353,-1542.0,0.00040615,30]
[393790139,1762990243362,-200.0,0.00040615,7]
[393790140,1762990243371,-6406.0597789,0.00040615,2]
[393790141,1762990243381,-151.0,0.00040615,120]
[393790142,1762990243390,-151.0,0.00040615,120]
[393790143,1762990243399,-500.0,0.00040615,7]
[393790144,1762990243408,-500.0,0.00040615,7]
[393790145,1762990243417,-200.0,0.00040615,7]
[393790146,1762990243426,-3555.5137898,0.00040615,2]
[393790147,1762990243435,-999.0,0.00040615,120]
[393790148,1762990243444,-500.0,0.00040615,20]
[393790149,1762990243452,-500.0,0.00040615,20]
[393790150,1762990243462,-500.0,0.00040615,20]
[393790151,1762990243471,-375.44865568,0.00040615,20]
[393790152,1762990243480,-500.0,0.00040615,2]
[393790153,1762990243489,-500.0,0.00040615,2]
[393790154,1762990243498,-548.18,0.00040615,30]
[393790155,1762990243508,-2139347.59500613,0.00040616,7]
[393790156,1762990243616,-90.66928937,0.00040616,7]
[393790173,1762990243967,-251392.4843953,0.00040616,7]
[393790175,1762990243981,-3123412.35144756,0.00040616,7]
[393790267,1762990246561,-1613.0,0.00040525,5]
[393790268,1762990246570,-1312.0,0.00040542,2]
[393790269,1762990246579,-72699.39369031,0.00040616,7]
[393790271,1762990426633,500.0,0.00016999,2]
[393790274,1762990686727,195.0,0.00027279,120]
[393790276,1762990743130,1480.40494172,0.00027279,120]
[393790277,1762990743744,193.0,0.00027279,120]
[393790278,1762990744935,300.0,0.00027279,120]
[393790279,1762990745036,300.0,0.00027629,120]
[393790280,1762990745147,167.53863657,0.00029488,120]
[393790281,1762990745190,164.54481816,0.00016999,2]
[393790282,1762990745213,295.45518184,0.00016999,2]
[393790283,1762990746748,195.0,0.00027279,120]
[393790284,1762990746867,195.0,0.00027629,120]
[393790285,1762990746959,195.0,0.00029488,120]
[393790286,1762990763160,500.0,0.00016999,2]
[393790287,1762990780125,500.0,0.00016999,2]
[393790288,1762990810916,195.0,0.00027169,120]
[393790289,1762990811007,195.0,0.00024749,120]
[393790290,1762990927702,216.58378992,0.0004069,120]
[393790291,1762990927776,208.40391773,0.0004069,120]
[393790292,1762990927858,322.6107,0.0004069,120]
[393790293,1762990930134,151.0,0.0004069,120]
[393790294,1762990930733,151.0,0.0004069,120]
[393790295,1762990931008,151.0,0.0004069,120]
[393790296,1762990931350,151.0,0.0004069,120]
[393790297,1762990931637,151.0,0.0004069,120]
[393790298,1762990931962,151.0,0.0004069,120]
[393790299,1762990932232,151.0,0.0004069,120]
[393790300,1762990932570,151.0,0.0004069,120]
[393790301,1762990932856,151.0,0.0004069,120]
[393790302,1762990933173,151.0,0.0004069,120]
[393790303,1762990933782,151.0,0.0004069,120]
[393790304,1762990933966,151.0,0.0004069,120]
[393790305,1762990934393,151.0,0.0004069,120]
[393790306,1762990934571,151.0,0.0004069,120]
[393790307,1762990935015,151.0,0.0004069,120]
[393790308,1762990935181,151.0,0.0004069,120]
[393790309,1762990935659,151.0,0.0004069,120]
[393790310,1762990935847,151.0,0.0004069,120]
[393790311,1762990936482,151.0,0.0004069,120]
[393790312,1762990936580,151.0,0.0004069,120]
[393790313,1762990937162,151.0,0.0004069,120]
[393790314,1762990942780,200.0,0.0004069,120]
[393790315,1762990977233,500.0,0.00016999,2]
[393790317,1762991007662,500.0,0.00016999,2]
[393790318,1762991098386,153.03532949,0.00016999,2]
[393790360,1762991193143,-751.58206139,0.00024699,2]
[393790361,1762991193164,-283.31715006,0.00024699,2]
[393790362,1762991342730,250.0,0.00017,2]
[393790363,1762991387331,500.0,0.00016999,2]
[393790373,1762991431514,-300.0,0.00019,2]
[393790374,1762991431524,-12.0,0.000209,2]
[393790375,1762991431556,-344.77952441,0.000209,2]
[393790376,1762991431567,-746.7373038,0.000209,2]
[393790377,1762991431578,-920.5581906,0.000209,2]
[393790378,1762991431587,-154.8718094,0.00021,2]
[393790379,1762991431598,-195.1281906,0.00021,2]
[393790380,1762991431607,-381.47828783,0.00023,2]
[393790381,1762991431619,-18.52171217,0.00023,2]
[393790382,1762991431628,-252.89271583,0.00024699,2]
[393790383,1762991431639,-248.16199177,0.00024699,2]
[393790384,1762991431648,-153.03532949,0.00024699,2]
[393790385,1762991431658,-500.0,0.00024799,2]
[393790386,1762991431667,-500.0,0.00024799,2]
[393790387,1762991431676,-300.0,0.00029823,2]
[393790388,1762991431686,-501.05470758,0.00029824,2]
[393790389,1762991431695,-1600.0,0.00030838,2]
[393790390,1762991431705,-150.0,0.00030839,2]
[393790391,1762991431714,-420.0,0.00032148,3]
[393790392,1762991431723,-212.16,0.00032503,2]
[393790393,1762991431733,-400.0,0.00032654,3]
[393790394,1762991431742,-2240.0,0.00033347,3]
[393790395,1762991431752,-152.749299,0.0003452,20]
[393790396,1762991431761,-155.560585,0.0003452,20]
[393790397,1762991431771,-300.0,0.00034655,3]
[393790398,1762991431780,-501.05470758,0.00034949,2]
[393790399,1762991431789,-1600.0,0.00035047,3]
[393790400,1762991431799,-1024.0,0.00035048,2]
[393790401,1762991431808,-509.05,0.00035049,30]
[393790402,1762991431817,-9999.99,0.00035049,2]
[393790403,1762991431826,-1820.33,0.00035049,2]
[393790404,1762991431835,-9999.99,0.00035049,2]
[393790405,1762991431844,-9999.99,0.00035049,2]
[393790406,1762991431854,-9999.99,0.00035049,2]
[393790407,1762991431863,-150.99,0.00035049,30]
[393790408,1762991431873,-3429.21,0.00035049,2]
[393790409,1762991431882,-1822.68,0.00035049,10]
[393790410,1762991431891,-185.02,0.00035049,2]
[393790411,1762991431900,-4738.75,0.00035049,2]
[393790412,1762991431910,-1428.07,0.00035049,2]
[393790413,1762991431919,-2909.32,0.00035049,2]
[393790414,1762991431928,-150.99,0.00035049,2]
[393790415,1762991431937,-2375.92,0.0003505,2]
[393790416,1762991431946,-421.61,0.0003505,15]
[393790417,1762991431955,-371.11108231,0.00035054,2]
[393790418,1762991431964,-500.0,0.00035073,5]
[393790419,1762991431974,-560.0,0.00035097,3]
[393790420,1762991431983,-500.0,0.00035621,5]
[393790421,1762991431992,-500.0,0.00035633,5]
[393790422,1762991432002,-500.0,0.00035633,5]
[393790423,1762991432016,-500.84691833,0.00035633,5]
[393790424,1762991432025,-500.0,0.00035633,5]
[393790425,1762991432035,-500.0,0.00035633,5]
[393790426,1762991432045,-500.0,0.00035633,2]
[393790427,1762991432054,-500.0,0.00035633,5]
[393790428,1762991432064,-156.84,0.00035887,2]
[393790429,1762991432073,-2934.0,0.00036061,3]
[393790430,1762991432083,-500.0,0.00036089,2]
[393790431,1762991432092,-500.0,0.00036089,20]
[393790432,1762991432102,-500.0,0.00036089,20]
[393790433,1762991432111,-500.0,0.00036089,20]
[393790434,1762991432120,-500.0,0.00036089,20]
[393790435,1762991432129,-1000.0,0.00036181,5]
[393790436,1762991432138,-152.0,0.00036698,3]
[393790437,1762991432148,-1000.0,0.00036715,2]
[393790438,1762991432162,-735.35411794,0.00036729,5]
[393790439,1762991432171,-5000.0,0.00036735,2]
[393790440,1762991432180,-1852.42,0.00036786,2]
[393790441,1762991432189,-999.0,0.00036906,3]
[393790442,1762991432198,-3049.41,0.00036911,2]
[393790443,1762991432208,-150.0,0.0003692,2]
[393790444,1762991432218,-500.0,0.00036999,2]
[393790445,1762991432227,-500.0,0.00036999,20]
[393790446,1762991432240,-500.0,0.00036999,20]
[393790447,1762991432249,-500.0,0.00036999,20]
[393790449,1762991432258,-500.0,0.00036999,20]
[393790450,1762991432268,-500.0,0.00036999,20]
[393790451,1762991432278,-500.0,0.00036999,20]
[393790452,1762991432287,-579.0,0.00037576,3]
[393790453,1762991432296,-767.0,0.00037724,3]
[393790454,1762991432306,-500.0,0.00037727,2]
[393790455,1762991432315,-152.0,0.00037889,4]
[393790456,1762991432325,-1217.72,0.00037939,30]
[393790457,1762991432334,-500.0,0.00037989,2]
[393790458,1762991432346,-866.575,0.00037989,50]
[393790459,1762991432355,-191.55081289,0.00037989,20]
[393790460,1762991432364,-500.0,0.00037989,20]
[393790461,1762991432373,-543.15971495,0.00037989,20]
[393790462,1762991432383,-500.0,0.00037999,20]
[393790463,1762991432392,-500.0,0.00037999,20]
[393790464,1762991432401,-500.0,0.00037999,20]
[393790465,1762991432410,-500.0,0.00038,5]
[393790466,1762991432422,-505.2208953,0.00038,5]
[393790467,1762991432431,-500.0,0.00038,5]
[393790468,1762991432441,-2000.0,0.000382,2]
[393790469,1762991432450,-150.0,0.00038283,2]
[393790470,1762991432459,-501.69236665,0.00038486,5]
[393790471,1762991432470,-501.61257175,0.00038486,5]
[393790472,1762991432480,-500.0,0.00038486,5]
[393790473,1762991432489,-500.0,0.000385,5]
[393790474,1762991432500,-500.0,0.000385,5]
[393790475,1762991432512,-500.0,0.000385,5]
[393790476,1762991432522,-500.0,0.000385,5]
[393790477,1762991432531,-500.0,0.000385,5]
[393790478,1762991432540,-1000.0,0.00038548,5]
[393790479,1762991432549,-1000.0,0.00038548,5]
[393790480,1762991432558,-150.0,0.00038569,7]
[393790481,1762991432568,-150.0,0.00038591,2]
[393790482,1762991432577,-500.0,0.00038617,5]
[393790483,1762991432586,-500.0,0.00038617,5]
[393790484,1762991432595,-503.6822994,0.00038617,5]